[Event "Nordstansblixten 2025"]
[Site "Nordstan, Göteborg, Sweden"]
[Date "2025.05.10"]
[Round "6.2"]
[White "Andersson, Stig"]
[Black "Olivius, Sten"]
[Result "0-1"]
[TimeControl "3 minutes + 2 seconds per move from move one"]
[WhiteFideId "1731971"]
[BlackFideId "1788728"]
[WhiteElo "1837"]
[BlackElo "1874"]

1. e4 {[%clk 00:03:03]} e6 {[%clk 00:03:04]} {[%emt 00:00:01]} 2. d4 {[%clk
00:03:02]} {[%emt 00:00:03]} d5 {[%clk 00:03:05]} 3. Nd2 {[%clk 00:03:01]}
{[%emt 00:00:02]} Nf6 {[%clk 00:03:06]} 4. e5 {[%clk 00:03:02]} {[%emt
00:00:01]} Nfd7 {[%clk 00:03:08]} {[%emt 00:00:01]} 5. Bd3 {[%clk 00:02:59]}
{[%emt 00:00:05]} c5 {[%clk 00:03:08]} {[%emt 00:00:01]} 6. c3 {[%clk
00:02:59]} {[%emt 00:00:02]} Nc6 {[%clk 00:03:09]} 7. Ne2 {[%clk 00:02:59]}
{[%emt 00:00:02]} Qb6 {[%clk 00:03:04]} {[%emt 00:00:08]} 8. O-O {[%clk
00:02:47]} {[%emt 00:00:14]} f6 {[%clk 00:02:53]} {[%emt 00:00:14]} 9. exf6
{[%clk 00:02:41]} {[%emt 00:00:07]} Nxf6 {[%clk 00:02:53]} {[%emt 00:00:02]} 10.
Nf3 {[%clk 00:02:29]} {[%emt 00:00:14]} Bd6 {[%clk 00:02:48]} {[%emt 00:00:07]}
11. dxc5 {[%clk 00:01:55]} {[%emt 00:00:37]} Bxc5 {[%clk 00:02:40]} {[%emt
00:00:10]} 12. b4 {[%clk 00:01:39]} {[%emt 00:00:18]} Bd6 {[%clk 00:02:37]}
{[%emt 00:00:05]} 13. Qc2 {[%clk 00:01:31]} {[%emt 00:00:10]} O-O {[%clk
00:02:28]} {[%emt 00:00:10]} 14. Bf4 {[%clk 00:01:10]} {[%emt 00:00:23]} Bxf4
{[%clk 00:02:15]} {[%emt 00:00:16]} 15. Nxf4 {[%clk 00:01:09]} {[%emt
00:00:02]} e5 {[%clk 00:02:15]} {[%emt 00:00:03]} 16. Nxd5 {[%clk 00:00:58]}
{[%emt 00:00:13]} Nxd5 {[%clk 00:02:13]} {[%emt 00:00:04]} 17. Bxh7+ {[%clk
00:00:52]} {[%emt 00:00:07]} Kh8 {[%clk 00:02:12]} {[%emt 00:00:03]} 18. Nh4
{[%clk 00:00:34]} {[%emt 00:00:20]} Nce7 {[%clk 00:02:04]} {[%emt 00:00:10]} 19.
a4 {[%clk 00:00:24]} {[%emt 00:00:13]} Qh6 {[%clk 00:02:00]} {[%emt 00:00:06]}
20. Ng6+ {[%clk 00:00:14]} {[%emt 00:00:12]} Nxg6 {[%clk 00:02:01]} {[%emt
00:00:01]} 21. Bxg6 {[%clk 00:00:14]} {[%emt 00:00:02]} Nf4 {[%clk 00:01:55]}
{[%emt 00:00:08]} 22. Be4 {[%clk 00:00:13]} {[%emt 00:00:03]} Qg5 {[%clk
00:01:34]} {[%emt 00:00:22]} 23. Kh1 {[%clk 00:00:12]} {[%emt 00:00:04]} Bf5
{[%clk 00:01:32]} {[%emt 00:00:04]} 24. a5 {[%clk 00:00:11]} {[%emt 00:00:03]}
Rac8 {[%clk 00:01:28]} {[%emt 00:00:06]} 25. Rac1 {[%clk 00:00:09]} {[%emt
00:00:04]} Rc4 {[%clk 00:01:06]} {[%emt 00:00:24]} 26. Bxf5 {[%clk 00:00:09]}
{[%emt 00:00:01]} Qxg2# {[%clk 00:01:05]} {[%emt 00:00:03]} 0-1

[Event "Nordstansblixten 2025"]
[Site "Nordstan, Göteborg, Sweden"]
[Date "2025.05.10"]
[Round "6.3"]
[White "Mohammed, Safian Haj"]
[Black "Karlsson, Stefan"]
[Result "0-1"]
[TimeControl "3 minutes + 2 seconds per move from move one"]
[WhiteFideId "1729276"]
[BlackFideId "1771183"]
[WhiteElo "1874"]
[BlackElo "2128"]

1. e4 {[%clk 00:03:04]} c5 {[%clk 00:03:03]} {[%emt 00:00:01]} 2. Nf3 {[%clk
00:03:05]} {[%emt 00:00:01]} d6 {[%clk 00:03:04]} 3. d4 {[%clk 00:03:06]} cxd4
{[%clk 00:03:05]} {[%emt 00:00:02]} 4. Nxd4 {[%clk 00:03:07]} Nf6 {[%clk
00:03:06]} 5. Nc3 {[%clk 00:03:08]} {[%emt 00:00:01]} Nc6 {[%clk 00:03:07]} 6.
Bg5 {[%clk 00:03:09]} e6 {[%clk 00:03:07]} {[%emt 00:00:02]} 7. Qd2 {[%clk
00:03:02]} {[%emt 00:00:09]} a6 {[%clk 00:03:08]} {[%emt 00:00:01]} 8. O-O-O
{[%clk 00:02:47]} {[%emt 00:00:17]} Bd7 {[%clk 00:03:09]} 9. f4 {[%emt
00:00:06]} Be7 {[%clk 00:03:06]} {[%emt 00:00:03]} 10. Be2 {[%clk 00:02:35]}
{[%emt 00:00:11]} b5 {[%clk 00:03:03]} {[%emt 00:00:06]} 11. a3 {[%emt
00:00:07]} h6 {[%clk 00:02:50]} {[%emt 00:00:12]} 12. Bxf6 {[%clk 00:02:23]}
{[%emt 00:00:11]} Bxf6 {[%clk 00:02:23]} {[%emt 00:00:29]} 13. Nxc6 {[%clk
00:02:21]} {[%emt 00:00:04]} Bxc6 {[%clk 00:02:24]} 14. Bf3 {[%clk 00:02:11]}
{[%emt 00:00:11]} Be7 {[%clk 00:01:50]} {[%emt 00:00:37]} 15. Rhe1 {[%clk
00:02:05]} {[%emt 00:00:08]} Rc8 {[%clk 00:01:41]} {[%emt 00:00:10]} 16. Kb1
{[%clk 00:01:57]} {[%emt 00:00:11]} Qb6 {[%clk 00:01:27]} {[%emt 00:00:16]} 17.
f5 {[%clk 00:01:53]} {[%emt 00:00:06]} b4 {[%clk 00:01:16]} {[%emt 00:00:13]}
18. axb4 {[%clk 00:01:51]} {[%emt 00:00:05]} Qxb4 {[%clk 00:01:15]} {[%emt
00:00:03]} 19. fxe6 {[%clk 00:01:50]} {[%emt 00:00:03]} fxe6 {[%clk 00:01:12]}
{[%emt 00:00:05]} 20. Bh5+ {[%clk 00:01:48]} {[%emt 00:00:04]} Kd7 {[%clk
00:01:03]} {[%emt 00:00:11]} 21. e5 {[%clk 00:01:37]} {[%emt 00:00:12]} Rb8
{[%clk 00:00:52]} {[%emt 00:00:14]} 22. b3 {[%clk 00:01:28]} {[%emt 00:00:11]}
Rhc8 {[%clk 00:00:44]} {[%emt 00:00:11]} 23. exd6 {[%clk 00:01:28]} {[%emt
00:00:03]} Bf6 {[%clk 00:00:44]} 24. Ne4 {[%clk 00:01:11]} {[%emt 00:00:18]}
Bxe4 {[%clk 00:00:37]} {[%emt 00:00:10]} 25. Qxb4 {[%clk 00:00:37]} {[%emt
00:00:36]} Bxc2+ {[%clk 00:00:30]} {[%emt 00:00:08]} 0-1

[Event "Nordstansblixten 2025"]
[Site "Nordstan, Göteborg, Sweden"]
[Date "2025.05.10"]
[Round "6.4"]
[White "Wellevit, Tomas"]
[Black "Bergdahl, Martin"]
[Result "1-0"]
[TimeControl "3 minutes + 2 seconds per move from move one"]
[WhiteFideId "1731963"]
[BlackFideId "1782231"]
[WhiteElo "2131"]
[BlackElo "1867"]

1. e4 {[%clk 00:03:02]} c6 {[%clk 00:03:02]} {[%emt 00:00:03]} 2. d4 {[%clk
00:03:04]} {[%emt 00:00:02]} d5 {[%clk 00:03:03]} 3. exd5 {[%clk 00:03:06]}
cxd5 {[%clk 00:03:05]} 4. c4 {[%clk 00:03:07]} Nf6 {[%clk 00:03:06]} {[%emt
00:00:01]} 5. Nc3 {[%clk 00:03:09]} Nc6 {[%clk 00:03:01]} {[%emt 00:00:06]} 6.
c5 {[%clk 00:03:09]} {[%emt 00:00:02]} e5 {[%clk 00:02:45]} {[%emt 00:00:18]} 7.
dxe5 {[%clk 00:03:08]} {[%emt 00:00:03]} Nxe5 {[%clk 00:02:46]} {[%emt
00:00:01]} 8. Bb5+ {[%clk 00:03:09]} {[%emt 00:00:02]} Nc6 {[%clk 00:02:46]}
{[%emt 00:00:01]} 9. Be3 {[%clk 00:03:02]} {[%emt 00:00:10]} Be7 {[%clk
00:02:34]} {[%emt 00:00:14]} 10. Nge2 {[%clk 00:03:01]} {[%emt 00:00:02]} O-O
{[%clk 00:02:34]} {[%emt 00:00:02]} 11. O-O {[%clk 00:02:59]} {[%emt 00:00:05]}
Bg4 {[%clk 00:02:31]} {[%emt 00:00:05]} 12. f3 {[%clk 00:02:58]} {[%emt
00:00:03]} Be6 {[%clk 00:02:24]} {[%emt 00:00:08]} 13. Rc1 {[%clk 00:02:51]}
{[%emt 00:00:10]} Rc8 {[%clk 00:01:58]} {[%emt 00:00:27]} 14. a3 {[%clk
00:02:44]} {[%emt 00:00:10]} a5 {[%clk 00:01:27]} {[%emt 00:00:33]} 15. Na4
{[%clk 00:02:34]} {[%emt 00:00:11]} Nd7 {[%clk 00:01:09]} {[%emt 00:00:20]} 16.
Kh1 {[%clk 00:02:24]} {[%emt 00:00:13]} Bf6 {[%clk 00:00:56]} {[%emt 00:00:15]}
17. Bd3 {[%clk 00:02:16]} {[%emt 00:00:09]} Nce5 {[%clk 00:00:46]} {[%emt
00:00:13]} 18. Bb1 {[%emt 00:00:27]} Nc4 {[%clk 00:00:30]} 19. Bd4 {[%clk
00:02:10]} Bxd4 {[%clk 00:00:26]} {[%emt 00:00:06]} 20. Qxd4 {[%clk 00:02:11]}
Qf6 {[%clk 00:00:16]} {[%emt 00:00:13]} 21. Qd3 {[%clk 00:01:34]} {[%emt
00:00:38]} g6 {[%clk 00:00:12]} {[%emt 00:00:06]} 22. b4 {[%clk 00:01:34]}
{[%emt 00:00:02]} axb4 {[%clk 00:00:08]} {[%emt 00:00:06]} 23. axb4 {[%clk
00:01:35]} Nde5 {[%clk 00:00:07]} {[%emt 00:00:03]} 24. Qd4 {[%clk 00:01:21]}
{[%emt 00:00:13]} Nd7 {[%clk 00:00:08]} {[%emt 00:00:04]} 25. Rfe1 {[%clk
00:01:09]} {[%emt 00:00:14]} Qxd4 {[%clk 00:00:06]} {[%emt 00:00:04]} 26. Nxd4
{[%clk 00:01:11]} Rfe8 {[%clk 00:00:07]} 27. Nc3 {[%clk 00:01:03]} {[%emt
00:00:09]} Na3 {[%clk 00:00:06]} {[%emt 00:00:04]} 28. Ncb5 {[%clk 00:00:56]}
{[%emt 00:00:09]} Nxb1 {[%clk 00:00:04]} {[%emt 00:00:03]} 29. Rxb1 {[%clk
00:00:55]} {[%emt 00:00:03]} Nf6 {[%clk 00:00:03]} {[%emt 00:00:03]} 30. Nd6
{[%clk 00:00:55]} {[%emt 00:00:02]} Rcd8 {[%clk 00:00:05]} 31. Nxe8 {[%clk
00:00:56]} Rxe8 {[%clk 00:00:06]} 1-0

[Event "Nordstansblixten 2025"]
[Site "Nordstan, Göteborg, Sweden"]
[Date "2025.05.10"]
[Round "6.5"]
[White "Kenani, Dariush"]
[Black "Buzleta, Patrik"]
[Result "0-1"]
[TimeControl "3 minutes + 2 seconds per move from move one"]
[WhiteFideId "1707973"]
[BlackFideId "1755463"]
[WhiteElo "1933"]
[BlackElo "1950"]

1. d4 {[%clk 00:03:02]} {[%emt 00:00:02]} e6 {[%clk 00:03:04]} 2. c4 {[%clk
00:03:01]} {[%emt 00:00:03]} a6 {[%clk 00:03:05]} 3. Nc3 {[%clk 00:03:01]}
{[%emt 00:00:01]} g6 {[%clk 00:03:06]} 4. a3 {[%clk 00:02:58]} {[%emt
00:00:05]} Bg7 {[%clk 00:03:07]} 5. e4 {[%clk 00:02:59]} d6 {[%clk 00:03:09]} 6.
Nf3 {[%clk 00:02:59]} {[%emt 00:00:02]} h6 {[%clk 00:03:09]} 7. Bd3 {[%clk
00:02:58]} {[%emt 00:00:04]} Ne7 {[%clk 00:03:10]} {[%emt 00:00:01]} 8. O-O
{[%clk 00:02:57]} {[%emt 00:00:02]} b6 {[%clk 00:03:11]} 9. Re1 {[%clk
00:02:45]} {[%emt 00:00:14]} Bb7 {[%clk 00:03:11]} {[%emt 00:00:02]} 10. h3
{[%clk 00:02:43]} {[%emt 00:00:04]} Qd7 {[%clk 00:03:12]} 11. Bf4 {[%clk
00:02:43]} {[%emt 00:00:02]} g5 {[%clk 00:03:13]} 12. Bg3 {[%clk 00:02:44]}
{[%emt 00:00:02]} Rg8 {[%clk 00:03:12]} {[%emt 00:00:03]} 13. d5 {[%clk
00:02:37]} {[%emt 00:00:08]} e5 {[%clk 00:03:13]} {[%emt 00:00:02]} 14. b4
{[%clk 00:02:36]} {[%emt 00:00:03]} Bf6 {[%clk 00:03:03]} {[%emt 00:00:11]} 15.
Nh2 {[%clk 00:02:36]} {[%emt 00:00:03]} Ng6 {[%clk 00:03:04]} 16. Qh5 {[%clk
00:02:19]} {[%emt 00:00:17]} Bg7 {[%clk 00:03:03]} {[%emt 00:00:04]} 17. Nd1
{[%clk 00:02:07]} {[%emt 00:00:14]} Qe7 {[%clk 00:02:54]} {[%emt 00:00:11]} 18.
Ne3 {[%clk 00:02:07]} {[%emt 00:00:03]} Bc8 {[%clk 00:02:53]} {[%emt 00:00:02]}
19. Nf5 {[%clk 00:02:01]} {[%emt 00:00:08]} Bxf5 {[%clk 00:02:54]} {[%emt
00:00:01]} 20. exf5 {[%clk 00:02:02]} {[%emt 00:00:01]} Nf4 {[%clk 00:02:52]}
{[%emt 00:00:04]} 21. Bxf4 {[%clk 00:01:59]} {[%emt 00:00:06]} gxf4 {[%clk
00:02:53]} 22. Ng4 {[%clk 00:01:48]} {[%emt 00:00:13]} Nd7 {[%clk 00:02:51]}
{[%emt 00:00:04]} 23. Bc2 {[%clk 00:01:37]} {[%emt 00:00:13]} O-O-O {[%clk
00:02:42]} {[%emt 00:00:11]} 24. Rac1 {[%clk 00:01:32]} {[%emt 00:00:07]} Kb8
{[%clk 00:02:27]} {[%emt 00:00:17]} 25. a4 {[%clk 00:01:16]} {[%emt 00:00:18]}
Rde8 {[%clk 00:02:14]} {[%emt 00:00:14]} 26. a5 {[%clk 00:01:16]} {[%emt
00:00:02]} bxa5 {[%clk 00:02:07]} {[%emt 00:00:09]} 27. bxa5 {[%clk 00:01:18]}
{[%emt 00:00:01]} Nc5 {[%clk 00:02:08]} 28. Rb1+ {[%clk 00:01:19]} {[%emt
00:00:02]} Ka7 {[%clk 00:02:05]} {[%emt 00:00:01]} 29. Rb2 {[%clk 00:01:06]}
{[%emt 00:00:17]} e4 {[%clk 00:02:06]} {[%emt 00:00:01]} 30. Rbb1 {[%clk
00:01:00]} {[%emt 00:00:09]} e3 {[%clk 00:02:07]} 31. fxe3 {[%clk 00:01:00]}
{[%emt 00:00:02]} fxe3 {[%clk 00:02:08]} 32. Rxe3 {[%clk 00:01:00]} {[%emt
00:00:03]} Bd4 {[%clk 00:02:09]} 33. Rbe1 {[%clk 00:00:59]} {[%emt 00:00:03]}
Rg5 {[%clk 00:01:43]} {[%emt 00:00:27]} 34. Qxh6 {[%clk 00:00:58]} {[%emt
00:00:04]} Rxg4 {[%clk 00:01:44]} {[%emt 00:00:01]} 35. hxg4 {[%clk 00:00:58]}
{[%emt 00:00:02]} Bxe3+ {[%clk 00:01:45]} 36. Kh1 {[%clk 00:00:57]} {[%emt
00:00:03]} Bxh6 {[%clk 00:01:46]} {[%emt 00:00:01]} 37. Rxe7 {[%clk 00:00:58]}
{[%emt 00:00:02]} Rxe7 {[%clk 00:01:45]} {[%emt 00:00:03]} 0-1

[Event "Nordstansblixten 2025"]
[Site "Nordstan, Göteborg, Sweden"]
[Date "2025.05.10"]
[Round "6.6"]
[White "Bergdahl, Daniel"]
[Black "Madevan Vaishnavi, Yaashvan"]
[Result "1-0"]
[TimeControl "3 minutes + 2 seconds per move from move one"]
[WhiteFideId "1780921"]
[BlackFideId "1772180"]
[WhiteElo "1855"]
[BlackElo "1717"]

1. e4 {[%clk 00:03:02]} {[%emt 00:00:02]} c5 {[%clk 00:03:04]} 2. Nf3 {[%clk
00:03:03]} g6 {[%clk 00:03:05]} 3. c3 {[%clk 00:03:04]} {[%emt 00:00:01]} Bg7
{[%clk 00:03:06]} 4. d4 {[%clk 00:03:05]} cxd4 {[%clk 00:03:08]} 5. cxd4 {[%clk
00:03:06]} {[%emt 00:00:01]} d6 {[%clk 00:03:08]} {[%emt 00:00:02]} 6. Nc3
{[%clk 00:03:05]} {[%emt 00:00:02]} Nc6 {[%emt 00:00:03]} 7. Bc4 {[%clk
00:03:05]} Nf6 {[%clk 00:03:10]} {[%emt 00:00:01]} 8. O-O {[%clk 00:03:04]}
{[%emt 00:00:03]} O-O {[%clk 00:03:10]} {[%emt 00:00:02]} 9. Be3 {[%clk
00:03:03]} {[%emt 00:00:03]} Ng4 {[%clk 00:03:09]} {[%emt 00:00:03]} 10. Bf4
{[%clk 00:02:54]} {[%emt 00:00:10]} e5 {[%clk 00:03:01]} {[%emt 00:00:11]} 11.
dxe5 {[%clk 00:02:43]} {[%emt 00:00:13]} dxe5 {[%clk 00:03:00]} {[%emt
00:00:03]} 12. Qxd8 {[%clk 00:02:28]} {[%emt 00:00:17]} Rxd8 {[%clk 00:02:53]}
{[%emt 00:00:10]} 13. Bg3 {[%clk 00:02:28]} {[%emt 00:00:01]} a6 {[%clk
00:01:55]} {[%emt 00:01:00]} 14. h3 {[%clk 00:02:15]} {[%emt 00:00:14]} Nh6
{[%clk 00:01:48]} {[%emt 00:00:11]} 15. Bd5 {[%clk 00:01:57]} {[%emt 00:00:20]}
Re8 {[%clk 00:01:00]} {[%emt 00:00:51]} 16. Rad1 {[%clk 00:01:25]} {[%emt
00:00:33]} Be6 {[%clk 00:01:00]} {[%emt 00:00:02]} 17. Bxc6 {[%clk 00:01:01]}
{[%emt 00:00:27]} bxc6 {[%clk 00:00:59]} {[%emt 00:00:02]} 18. Rd6 {[%clk
00:00:50]} {[%emt 00:00:14]} Bc4 {[%clk 00:00:44]} {[%emt 00:00:14]} 19. Rfd1
{[%clk 00:00:48]} {[%emt 00:00:06]} Rac8 {[%clk 00:00:40]} {[%emt 00:00:07]} 20.
b3 {[%clk 00:00:39]} {[%emt 00:00:11]} Be6 {[%clk 00:00:18]} {[%emt 00:00:24]}
21. Nxe5 {[%clk 00:00:20]} {[%emt 00:00:20]} Bxe5 {[%clk 00:00:09]} {[%emt
00:00:12]} 22. Bxe5 {[%clk 00:00:21]} {[%emt 00:00:02]} Bxb3 {[%clk 00:00:09]}
{[%emt 00:00:01]} 23. axb3 {[%clk 00:00:15]} {[%emt 00:00:08]} Rxe5 {[%clk
00:00:10]} 24. Rd8+ {[%clk 00:00:13]} {[%emt 00:00:04]} Re8 {[%clk 00:00:06]}
{[%emt 00:00:06]} 25. Rxe8+ {[%clk 00:00:12]} {[%emt 00:00:03]} Rxe8 {[%clk
00:00:07]} 26. Rd6 {[%clk 00:00:13]} {[%emt 00:00:02]} Rc8 {[%clk 00:00:08]} 27.
Na4 {[%clk 00:00:08]} {[%emt 00:00:06]} f5 {[%clk 00:00:07]} {[%emt 00:00:04]}
28. exf5 {[%clk 00:00:03]} {[%emt 00:00:06]} Nxf5 {[%clk 00:00:07]} {[%emt
00:00:02]} 29. Rd7 {[%clk 00:00:05]} Rb8 {[%clk 00:00:03]} {[%emt 00:00:06]} 30.
Nc5 {[%clk 00:00:04]} {[%emt 00:00:02]} Rb5 {[%clk 00:00:03]} {[%emt 00:00:02]}
31. Ne6 {[%clk 00:00:04]} {[%emt 00:00:02]} Rxb3 {[%clk 00:00:00]} 1-0

[Event "Nordstansblixten 2025"]
[Site "Nordstan, Göteborg, Sweden"]
[Date "2025.05.10"]
[Round "6.7"]
[White "Ring, Sami"]
[Black "Bjureblad, Martin"]
[Result "1-0"]
[TimeControl "3 minutes + 2 seconds per move from move one"]
[WhiteFideId "1785869"]
[BlackFideId "1717928"]
[WhiteElo "1712"]
[BlackElo "1597"]

1. e4 {[%clk 00:03:03]} c5 {[%clk 00:03:03]} {[%emt 00:00:01]} 2. Nf3 {[%clk
00:03:04]} Nc6 {[%clk 00:03:03]} {[%emt 00:00:02]} 3. d4 {[%clk 00:03:06]} cxd4
{[%clk 00:03:04]} {[%emt 00:00:02]} 4. Nxd4 {[%clk 00:03:06]} e5 {[%clk
00:03:05]} {[%emt 00:00:01]} 5. Nb5 {[%clk 00:03:07]} d6 {[%clk 00:03:06]}
{[%emt 00:00:02]} 6. N1c3 {[%clk 00:03:08]} a6 {[%clk 00:03:07]} 7. Na3 {[%clk
00:03:10]} Nf6 {[%clk 00:03:07]} {[%emt 00:00:02]} 8. Bg5 {[%clk 00:03:10]}
{[%emt 00:00:02]} b5 {[%clk 00:03:07]} {[%emt 00:00:02]} 9. Nd5 {[%clk
00:03:10]} {[%emt 00:00:02]} Be7 {[%clk 00:03:07]} {[%emt 00:00:02]} 10. Bxf6
{[%clk 00:03:10]} {[%emt 00:00:01]} Bxf6 {[%clk 00:03:07]} {[%emt 00:00:03]} 11.
c3 {[%clk 00:03:11]} Be6 {[%clk 00:03:04]} {[%emt 00:00:05]} 12. Nc2 {[%clk
00:03:08]} {[%emt 00:00:05]} O-O {[%clk 00:03:00]} {[%emt 00:00:06]} 13. Nce3
{[%clk 00:03:08]} {[%emt 00:00:01]} Rb8 {[%clk 00:02:54]} {[%emt 00:00:08]} 14.
h4 {[%clk 00:02:47]} {[%emt 00:00:23]} g6 {[%clk 00:02:48]} {[%emt 00:00:07]}
15. h5 {[%clk 00:02:41]} {[%emt 00:00:08]} Bxd5 {[%clk 00:02:37]} {[%emt
00:00:13]} 16. Nxd5 {[%clk 00:02:25]} {[%emt 00:00:18]} Bg5 {[%clk 00:02:26]}
{[%emt 00:00:13]} 17. Be2 {[%clk 00:02:05]} {[%emt 00:00:21]} f5 {[%clk
00:02:16]} {[%emt 00:00:13]} 18. hxg6 {[%clk 00:01:59]} {[%emt 00:00:08]} hxg6
{[%clk 00:02:13]} {[%emt 00:00:05]} 19. exf5 {[%clk 00:01:53]} {[%emt
00:00:08]} Rxf5 {[%clk 00:02:06]} {[%emt 00:00:09]} 20. Bg4 {[%clk 00:01:44]}
{[%emt 00:00:12]} Qf8 {[%clk 00:01:37]} {[%emt 00:00:29]} 21. Bxf5 {[%clk
00:01:42]} {[%emt 00:00:05]} Qxf5 {[%clk 00:01:37]} {[%emt 00:00:02]} 22. Qe2
{[%clk 00:01:16]} {[%emt 00:00:29]} Rf8 {[%clk 00:01:30]} {[%emt 00:00:09]} 23.
f3 {[%clk 00:01:09]} {[%emt 00:00:08]} Re8 {[%clk 00:01:22]} {[%emt 00:00:10]}
24. Qe4 {[%clk 00:00:57]} {[%emt 00:00:13]} Qf7 {[%clk 00:01:13]} {[%emt
00:00:12]} 25. a4 {[%clk 00:00:50]} {[%emt 00:00:10]} Bf4 {[%clk 00:00:55]}
{[%emt 00:00:18]} 26. axb5 {[%clk 00:00:48]} {[%emt 00:00:05]} Bg3+ {[%clk
00:00:55]} {[%emt 00:00:02]} 27. Ke2 {[%clk 00:00:43]} {[%emt 00:00:07]} axb5
{[%clk 00:00:42]} {[%emt 00:00:15]} 28. Ra6 {[%emt 00:00:39]} Nd8 {[%clk
00:00:06]} 29. Rxd6 {[%clk 00:00:44]} {[%emt 00:00:02]} Ne6 {[%clk 00:00:06]}
{[%emt 00:00:02]} 30. Qg4 {[%clk 00:00:31]} {[%emt 00:00:14]} Bf4 {[%clk
00:00:04]} {[%emt 00:00:04]} 31. g3 {[%clk 00:00:27]} {[%emt 00:00:06]} Bxg3
{[%clk 00:00:03]} {[%emt 00:00:04]} 32. Qxg3 {[%clk 00:00:25]} {[%emt
00:00:04]} Kg7 {[%clk 00:00:03]} {[%emt 00:00:02]} 33. Rg1 {[%clk 00:00:25]}
{[%emt 00:00:02]} Rc8 {[%clk 00:00:00]} 1-0

[Event "Nordstansblixten 2025"]
[Site "Nordstan, Göteborg, Sweden"]
[Date "2025.05.10"]
[Round "6.8"]
[White "Munuswamy, Shivakumar"]
[Black "Hammar, Arvid"]
[Result "0-1"]
[TimeControl "3 minutes + 2 seconds per move from move one"]
[WhiteFideId "1788914"]
[BlackFideId "1735977"]
[WhiteElo "1458"]
[BlackElo "1667"]

1. e4 {[%clk 00:03:02]} {[%emt 00:00:01]} e5 {[%clk 00:03:03]} {[%emt
00:00:02]} 2. Nf3 {[%clk 00:03:03]} {[%emt 00:00:01]} Nc6 {[%clk 00:03:04]} 3.
c3 {[%clk 00:03:04]} {[%emt 00:00:01]} Nf6 {[%clk 00:03:01]} {[%emt 00:00:04]}
4. d4 {[%clk 00:03:04]} {[%emt 00:00:02]} exd4 {[%clk 00:03:01]} {[%emt
00:00:02]} 5. cxd4 {[%clk 00:03:04]} {[%emt 00:00:02]} Bb4+ {[%clk 00:03:00]}
{[%emt 00:00:04]} 6. Nc3 {[%clk 00:03:04]} {[%emt 00:00:02]} d5 {[%clk
00:02:55]} {[%emt 00:00:07]} 7. exd5 {[%clk 00:02:58]} {[%emt 00:00:08]} Nxd5
{[%clk 00:02:43]} {[%emt 00:00:14]} 8. Bb5 {[%clk 00:02:56]} {[%emt 00:00:04]}
Bd7 {[%clk 00:02:25]} {[%emt 00:00:20]} 9. O-O {[%clk 00:02:54]} {[%emt
00:00:03]} Bxc3 {[%clk 00:02:23]} {[%emt 00:00:05]} 10. bxc3 {[%clk 00:02:53]}
{[%emt 00:00:03]} Nxc3 {[%clk 00:02:17]} {[%emt 00:00:06]} 11. Qe1+ {[%clk
00:02:52]} {[%emt 00:00:04]} Qe7 {[%clk 00:02:05]} {[%emt 00:00:15]} 12. Qxc3
{[%clk 00:02:52]} {[%emt 00:00:02]} O-O {[%clk 00:02:01]} {[%emt 00:00:06]} 13.
Ba3 {[%clk 00:02:49]} {[%emt 00:00:05]} Qf6 {[%clk 00:01:50]} {[%emt 00:00:13]}
14. Bxf8 {[%clk 00:02:48]} {[%emt 00:00:03]} Rxf8 {[%emt 00:00:05]} 15. Rad1
{[%clk 00:02:36]} {[%emt 00:00:10]} Qg6 {[%clk 00:01:51]} {[%emt 00:00:01]} 16.
Bd3 {[%clk 00:02:17]} {[%emt 00:00:21]} f5 {[%clk 00:01:45]} {[%emt 00:00:07]}
17. Qc4+ {[%clk 00:02:09]} {[%emt 00:00:10]} Kh8 {[%clk 00:01:45]} {[%emt
00:00:03]} 18. Ne5 {[%clk 00:02:05]} {[%emt 00:00:07]} Nxe5 {[%clk 00:01:43]}
{[%emt 00:00:04]} 19. dxe5 {[%clk 00:02:05]} {[%emt 00:00:02]} Bc6 {[%clk
00:01:44]} {[%emt 00:00:01]} 20. f3 {[%clk 00:02:00]} {[%emt 00:00:08]} b5
{[%clk 00:01:44]} {[%emt 00:00:02]} 21. Qc5 {[%clk 00:01:57]} {[%emt 00:00:04]}
Re8 {[%clk 00:01:35]} {[%emt 00:00:11]} 22. Rde1 {[%clk 00:01:53]} {[%emt
00:00:06]} Rd8 {[%clk 00:01:14]} {[%emt 00:00:22]} 23. Re3 {[%clk 00:01:50]}
{[%emt 00:00:05]} Qg5 {[%clk 00:01:08]} {[%emt 00:00:07]} 24. Rfe1 {[%clk
00:01:50]} {[%emt 00:00:03]} f4 {[%clk 00:00:55]} {[%emt 00:00:15]} 25. Qxc6
{[%clk 00:01:43]} {[%emt 00:00:09]} fxe3 {[%clk 00:00:49]} {[%emt 00:00:08]} 26.
Qxc7 {[%clk 00:01:36]} {[%emt 00:00:09]} Rxd3 {[%clk 00:00:45]} {[%emt
00:00:06]} 27. Qxa7 {[%clk 00:01:24]} {[%emt 00:00:14]} h6 {[%clk 00:00:36]}
{[%emt 00:00:10]} 28. Qb8+ {[%clk 00:01:19]} {[%emt 00:00:08]} Kh7 {[%clk
00:00:32]} {[%emt 00:00:07]} 29. Qxb5 {[%clk 00:01:18]} {[%emt 00:00:02]} Rd2
{[%clk 00:00:27]} {[%emt 00:00:07]} 30. Re2 {[%clk 00:01:03]} {[%emt 00:00:17]}
Rd1+ {[%clk 00:00:25]} {[%emt 00:00:04]} 0-1